Cogmind - Beta 13 @@@ ROGUE MODE // 2024.04.24 @ 10:21:30 Player: Phil Result: Destroyed by G-47 Trooper with Particle Gun Performance ------------- Evolutions (1) 500 Regions Visited (4) 800 Robots Destroyed (12) 60 Value Destroyed (199) 199 Prototype IDs (0) 0 Alien Tech Used (0) 0 Bonus (0) 0 TOTAL SCORE: 1559 Bonus ------- None Cogmind --------- Core Integrity 0/400 Matter 300/300 Energy 0/100 System Corruption 0% Temperature Cool (9) Movement Core (200) Ox3 Location -9/Storage Parts ------- > --- POWER (1) -------- (None) > --- PROPULSION (4) --- (None) > --- UTILITY (2) ------ Medium Storage Unit ECM Suite > --- WEAPON (2) ------- (None) > --- INVENTORY (10) --- Ion Engine Signal Interpreter ECM Suite Tractor Beam Peak State ------------ > --- POWER ------------ Light Ion Engine > --- PROPULSION ------- Flight Unit Flight Unit Flight Unit Flight Unit > --- UTILITY ---------- Small Storage Unit ECM Suite > --- WEAPON ----------- Assault Rifle Assault Rifle > --- INVENTORY -------- Light Ion Engine Compact Wheel Flight Unit ECM Suite Tractor Beam Medium Laser [Rating: 9] Favorites ----------- Power Light Ion Engine Engine Light Ion Engine Propulsion Flight Unit Leg Aluminum Leg Wheel Compact Wheel Hover Unit Hover Unit Flight Unit Flight Unit Utility ECM Suite Device ECM Suite Storage Small Storage Unit Weapon Assault Rifle Energy Gun Medium Laser Ballistic Gun Assault Rifle Build | -11 -10 -10 -9 -9 ------- Run | Yrd Mat Min Mat Sto Slots Evolved 2 | . . . 2 . Power . | . . . . . Propulsion 2 | . . . 2 . Utility . | . . . . . Weapon . | . . . . . Parts Attached 25 | 7 5 5 4 4 Power 3 | 1 . 1 . 1 Engine 3 | 1 . 1 . 1 Core . | . . . . . Reactor . | . . . . . Propulsion 13 | 2 3 4 2 2 Treads . | . . . . . Leg 2 | 2 . . . . Wheel 1 | . . . . 1 Hover 3 | . 3 . . . Flight 7 | . . 4 2 1 Utility 5 | 1 2 . 2 . Device 3 | . 2 . 1 . Storage 2 | 1 . . 1 . Processor . | . . . . . Hackware . | . . . . . Protection . | . . . . . Artifact . | . . . . . Weapon 4 | 3 . . . 1 Energy Gun 2 | 1 . . . 1 Energy Cannon . | . . . . . Ballistic Gun 2 | 2 . . . . Ballistic Cannon . | . . . . . Launcher . | . . . . . Special Weapon . | . . . . . Impact Weapon . | . . . . . Slashing Weapon . | . . . . . Piercing Weapon . | . . . . . Special Melee Weapon . | . . . . . Unidentified Prototypes . | . . . . . Parts Lost 13 | . 1 1 3 8 Power 3 | . . 1 1 1 Propulsion 7 | . 1 . 1 5 Utility . | . . . . . Weapon 3 | . . . 1 2 Highest Loss Streak 7 | . 1 1 3 7 To Critical Strikes . | . . . . . Average Slot Usage (%) 87 | . 98 98 97 58 Engine 11 | . 14 13 11 7 Leg 2 | . 12 . . . Wheel 1 | . . . . 6 Hover 4 | . 14 2 . . Flight 17 | . . 24 43 11 Device 12 | . 14 14 11 11 Storage 12 | . 14 14 11 11 Energy Gun 2 | . . . . 9 Ballistic Gun 19 | . 28 28 20 . Naked Turns . | . . . . . Heaviest Build 19 | 12 14 14 19 19 Greatest Support 20 | 20 20 12 12 16 Greatest Overweight (x) 4 | 1 1 4 2 2 Average Overweight (x) . | . . 1 1 1 Largest Inventory Capacity 10 | 8 8 8 10 10 Average Capacity 8 | 7 8 8 9 10 Most Carried 8 | 7 8 8 7 6 Average Carried 6 | 4 7 7 6 3 Final Capacity 10 | 8 8 8 10 10 Final Carried 8 | 7 8 8 7 4 Class Distribution -------------------- 87% | Mutant 12% | Scavenger-Mutant Dominant Class ---------------- Mutant | -10/Materials Mutant | -10/Mines Scavenger-Mutant | -9/Materials Mutant | -9/Storage Resources | -11 -10 -10 -9 -9 ----------- Run | Yrd Mat Min Mat Sto Matter Collected 510 | 287 32 101 . 90 Remotely . | . . . . . Salvage Created 348 | 75 52 84 . 137 Parts 28 | 1 5 14 . 8 Haulers Intercepted . | . . . . . Recyclers Shooed . | . . . . . Parts Field Recycled . | . . . . . Retrieved Matter . | . . . . . Parts Self-Destructed . | . . . . . Prevented . | . . . . . Kills | -11 -10 -10 -9 -9 ------- Run | Yrd Mat Min Mat Sto Combat Hostiles Destroyed 11 | . 3 5 . 3 Guns 11 | . 3 5 . 3 Classes Destroyed 4 | 1 1 . . 2 Recycler 1 | 1 . . . . Swarmer 8 | . 3 5 . . Grunt 2 | . . . . 2 Sentry 1 | . . . . 1 Best Kill Streak 3 | 1 3 3 . 2 Combat Bots Only 3 | . 3 3 . 2 Max Kills in Single Turn 1 | 1 1 1 . 1 Gunslinging . | . . . . . Exploded . | . . . . . Melee . | . . . . . Uniques/NPCs Destroyed . | . . . . . Combat | -11 -10 -10 -9 -9 -------- Run | Yrd Mat Min Mat Sto Hostile Shots Fired 168 | . 30 38 31 69 Missed 62 | . 9 15 14 24 Damage Taken 1210 | . 193 181 202 634 Core 457 | . 42 12 75 328 Absorbed by Shields . | . . . . . Core Remaining (%) 89 | 100 . 78 . . Volleys Fired 47 | 3 5 11 . 28 Largest 2 | 2 2 2 . 1 Hottest 50 | 40 40 40 . 50 Shots Fired 66 | 6 10 22 . 28 Gun 66 | 6 10 22 . 28 Cannon . | . . . . . Launcher . | . . . . . Special . | . . . . . Kinetic 38 | 6 10 22 . . Thermal 28 | . . . . 28 Explosive . | . . . . . Electromagnetic . | . . . . . Robot Hit Streak 7 | 2 2 4 . 7 Robot Miss Streak 5 | 2 2 5 . 2 Penetration Max . | . . . . . Secondary Targets 2 | . . 2 . . Max Gunslinging Chain 1 | . . 1 . . Shots Hit Robots 34 | 3 4 9 . 18 Core Hits 18 | 2 3 5 . 8 Critical Kills . | . . . . . Critical Parts Destroyed . | . . . . . Critical Strikes 3 | . . . . 3 Burn 3 | . . . . 3 Melee Attacks . | . . . . . Impact . | . . . . . Slashing . | . . . . . Piercing . | . . . . . Sneak Attacks . | . . . . . Combat Hostiles . | . . . . . Follow-up Attacks . | . . . . . Damage Inflicted 470 | 45 52 136 . 237 Guns 464 | 39 52 136 . 237 Cannons . | . . . . . Explosions . | . . . . . Melee . | . . . . . Ramming 6 | 6 . . . . Kinetic 227 | 39 52 136 . . Thermal 237 | . . . . 237 Explosive . | . . . . . Electromagnetic . | . . . . . Impact . | . . . . . Slashing . | . . . . . Piercing . | . . . . . Highest Corruption . | . . . . . Average Corruption . | . . . . . Corruption Purged . | . . . . . Corruption Blocked . | . . . . . Overload Shots . | . . . . . Overflow Damage . | . . . . . Projectiles . | . . . . . Explosions . | . . . . . Melee . | . . . . . Knockbacks . | . . . . . Impact . | . . . . . Kinetic . | . . . . . Secondary . | . . . . . Self-Inflicted Damage . | . . . . . Shots . | . . . . . Rammed . | . . . . . Targets Rammed 2 | 2 . . . . Kicked 2 | 2 . . . . Crushed . | . . . . . Highest Temperature 111 | . . . . 111 Average Temperature 42 | . . . . 42 Received Heat Transfer 537 | . 54 9 99 375 Siege Activations . | . . . . . Robots Corrupted . | . . . . . Combat Hostiles . | . . . . . Parts Fried . | . . . . . Impact Corruptions . | . . . . . Robots Melted . | . . . . . Combat Hostiles . | . . . . . Parts Melted 2 | . . . . 2 Heat Transferred 925 | . . . . 925 Parts Sabotaged . | . . . . . Parts Stolen . | . . . . . Parts Stripped . | . . . . . Power Chain Reactions . | . . . . . Alert | -11 -10 -10 -9 -9 ------- Run | Yrd Mat Min Mat Sto Peak Influence 139 | 5 63 139 83 57 Initial 53 | . 3 24 53 22 Average 54 | 1 11 103 71 42 Maximum Alert Level . | . . . . . Low Security (%) 100 | 100 100 100 100 100 Level 1 . | . . . . . Level 2 . | . . . . . Level 3 . | . . . . . Level 4 . | . . . . . Level 5 . | . . . . . High Security . | . . . . . Max Security . | . . . . . Squads Dispatched 5 | . 2 . 2 1 Investigation 2 | . 1 . 1 . Extermination . | . . . . . Reinforcement 3 | . 1 . 1 1 Assault . | . . . . . Garrison . | . . . . . Intercept . | . . . . . Searches Triggered . | . . . . . Construction Impeded 1 | . . . . 1 Haulers Reinforced . | . . . . . Active Scanning Responses . | . . . . . Cargo Convoy Interrupts . | . . . . . Stealth | -11 -10 -10 -9 -9 --------- Run | Yrd Mat Min Mat Sto Distress Signals 1 | . 1 . . . Communications Jammed . | . . . . . Distress Signals . | . . . . . Times Spotted 34 | . 15 8 6 5 Peak Tracking Total 8 | . 8 3 5 3 Tactical Retreats 6 | . 4 1 1 . Traps | -11 -10 -10 -9 -9 ------- Run | Yrd Mat Min Mat Sto Traps Triggered 3 | . 1 . 1 1 Indirectly . | . . . . . Trap Hack Attempts . | . . . . . Triggered . | . . . . . Disarmed . | . . . . . Reprogrammed . | . . . . . Reused . | . . . . . Traps Extracted . | . . . . . Installed . | . . . . . Triggered . | . . . . . Machines | -11 -10 -10 -9 -9 ---------- Run | Yrd Mat Min Mat Sto Machines Disabled . | . . . . . Max in Single Turn . | . . . . . Machines Repaired . | . . . . . Machines Dismantled . | . . . . . Machines Sabotaged . | . . . . . Overloaded Fab Kills . | . . . . . Hacking | -11 -10 -10 -9 -9 --------- Run | Yrd Mat Min Mat Sto Machines Accessed . | . . . . . Terminals . | . . . . . Fabricators . | . . . . . Repair Stations . | . . . . . Recycling Units . | . . . . . Scanalyzers . | . . . . . Garrison Access . | . . . . . Total Hacks . | . . . . . Successful . | . . . . . Failed . | . . . . . Catastrophic . | . . . . . Database Lockouts . | . . . . . Manual . | . . . . . Terminals . | . . . . . Fabricators . | . . . . . Repair Stations . | . . . . . Recycling Units . | . . . . . Scanalyzers . | . . . . . Garrison Access . | . . . . . Terminal Hacks . | . . . . . Fabricator Hacks . | . . . . . Repair Station Hacks . | . . . . . Recycling Unit Hacks . | . . . . . Scanalyzer . | . . . . . Garrison Access Hacks . | . . . . . Unauthorized Hacks . | . . . . . Terminals . | . . . . . Fabricators . | . . . . . Repair Stations . | . . . . . Recycling Units . | . . . . . Scanalyzers . | . . . . . Garrison Access . | . . . . . Data Cores Recovered . | . . . . . Used . | . . . . . Hacking Detections . | . . . . . Full Trace Events . | . . . . . Feedback Events . | . . . . . Feedback Blocked . | . . . . . Robot Schematics Acquired . | . . . . . Robots Built . | . . . . . Authchips . | . . . . . Time . | . . . . . Total Robot Build Rating . | . . . . . Part Schematics Acquired . | . . . . . Parts Built . | . . . . . Authchips . | . . . . . Time . | . . . . . Total Part Build Rating . | . . . . . Parts Repaired . | . . . . . Time . | . . . . . Parts Recycled . | . . . . . Recycled Matter . | . . . . . Retrieved Matter . | . . . . . Retrieved Components . | . . . . . Parts Scanalyzed . | . . . . . Part Schematics Acquired . | . . . . . Parts Damaged . | . . . . . Bothacking | -11 -10 -10 -9 -9 ------------ Run | Yrd Mat Min Mat Sto Used RIF Installer . | . . . . . Robots Hacked . | . . . . . Non-combat . | . . . . . Combat . | . . . . . Robot Hacks Applied . | . . . . . Relay Couplers Released . | . . . . . Fabnet Peak Effective % . | . . . . . Robots Rewired . | . . . . . Allies Hacked . | . . . . . Hacks Repelled . | . . . . . Allies | -11 -10 -10 -9 -9 -------- Run | Yrd Mat Min Mat Sto Total Allies . | . . . . . Largest Group . | . . . . . Highest-Rated Group . | . . . . . Highest-Rated Ally . | . . . . . Total Orders . | . . . . . Ally Attacks . | . . . . . Total Damage . | . . . . . Kills . | . . . . . Allies Corrupted . | . . . . . Allies Melted . | . . . . . Intel | -11 -10 -10 -9 -9 ------- Run | Yrd Mat Min Mat Sto Robot Analysis Total . | . . . . . Derelict Logs Recovered . | . . . . . Drone Launches . | . . . . . Drone Recoveries . | . . . . . Exploration | -11 -10 -10 -9 -9 ------------- Run | Yrd Mat Min Mat Sto Turns Passed 1143 | 113 255 372 136 267 Spaces Moved 749 | 66 187 269 105 122 Core 5 | 2 . 3 . . Treads . | . . . . . Legs 146 | 64 82 . . . Wheels 96 | . . . . 96 Hover 112 | . 105 7 . . Flight 390 | . . 259 105 26 Fastest Speed 50 | 50 116 116 114 111 Average Speed 118 | 121 117 119 114 118 Slowest Speed 280 | 190 120 280 197 197 Overloaded Moves . | . . . . . Propulsion Burnouts . | . . . . . Robots Hopped . | . . . . . Cave-ins Triggered . | . . . . . Exploration Rate (%) 24 | 5 31 59 11 15 Regions Visited 4 Branch Regions 2 Pre-discovered Areas . | . . . . . Known Exits Taken . | . . . . . Unknown Exits Taken 4 | 1 1 1 1 . Scrap Searched . | . . . . . Spaces Dug . | . . . . . Terrain Destroyed . | . . . . . Melee . | . . . . . Projectile . | . . . . . AOE . | . . . . . Terrain Rammed . | . . . . . Walls Destroyed . | . . . . . Machines Disabled . | . . . . . Actions | -11 -10 -10 -9 -9 --------- Run | Yrd Mat Min Mat Sto Total 947 | 90 217 304 120 216 Wait 78 | 5 2 1 9 61 Move 745 | 65 186 268 104 122 Hop . | . . . . . Pick Up 30 | 7 10 10 2 1 Fast Attach 6 | 6 . . . . Attach 17 | 1 5 5 2 4 Detach 3 | 1 2 . . . Swap 2 | . . . 2 . Drop 17 | . 7 9 1 . Fire 47 | 3 5 11 . 28 Melee . | . . . . . Ram . | . . . . . Kick 2 | 2 . . . . Crush . | . . . . . Escape Stasis . | . . . . . Rewire . | . . . . . Trap . | . . . . . Miscellaneous . | . . . . . Route ------- -11/Scrapyard -10/Materials (discovered 2 exits: *Mat / [*Min]) -10/Mines -9/Materials -9/Storage History --------- Turn | Location | Event 21 | -11/Scrapyard | Discovered new exit (range 15) 114 | -11/Scrapyard | Entered Materials 266 | -10/Materials | Discovered new exit (range 9) 304 | -10/Materials | Build established: Mutant 359 | -10/Materials | Discovered new exit (range 9) 369 | -10/Materials | Entered Mines 736 | -10/Mines | Discovered new exit (range 4) 741 | -10/Mines | Entered Materials 741 | -9/Materials | Evolved 2 slots: Propulsion x2 861 | -9/Materials | Discovered new exit (range 13) 877 | -9/Materials | Entered Storage 960 | -9/Storage | Lost 7 parts (1p4n2w) 1098 | -9/Storage | Core integrity fell below 50% 1133 | -9/Storage | Core integrity fell below 20% 1144 | -9/Storage | Destroyed by G-47 Trooper with Particle Gun Last Messages --------------- G-34 Mercenary destroyed. K-01 Serf collects debris. To regain energy, simply wait via the mouse wheel, '.', or KP5. Also make sure your per-turn energy generation is a net positive, and consider deactivating power-draining parts if not. K-01 Serf collects debris. Critical hit (Burn: +37). K-01 Serf collects debris. R-06 Scavenger collects Aluminum Leg. R-06 Scavenger collects Sml. Laser. K-01 Serf collects debris. Com. Wheel destroyed. K-01 Serf collects debris. Med. Laser destroyed. K-01 Serf collects debris. M-13 Machinist repairs G-47 Trooper. K-01 Serf collects debris. Critical hit (Burn: +37). Map ----- +----------------------------------------------------+ | | | | | ???????????????????????????????? | | ???????????????????????????????? | | ???????????????????????????????? | | ???????????????????????????????? | | ?????????????????????########### | | ?????????????????????# # | | ?????????????????????# """" # | | ?????????????????????# "??"" # | | ?????????????????????# "???"" # | | ?????????????????????# ""???" # | | ?????????????????????# ""??" # | | ?????????????????????# """" # | | ?????????????????????# # | | ?????????????????????####+###### | | ?????????????########### #???? | | ?????????????# # #???? | | ?????????????# + #???? | | ?????????????# # #???? | | ?????????????# + #???? | | ?????????????# # #???? | | ?????????????# # #???? | | ?????????????# # #???? | | ?????????????# # #???? | | ?????????????########### @ #???? | | ???????????????????????# #???? | | ???????????????????????# #???? | | ???????????????????????# #???? | | ???????????????????????# k #???? | | ???????????????????????# #???? | | ???????????????????????# #???? | | ???????????????????????# g#???? | | ???????????????????????# % #???? | | ???????????????????????# #???? | | ????????????############% ##??? | | ????????????# # #??? | | ????????????# """""" # #??? | | ????????????# "????" + #??? | | ????????????# "????" # #??? | | ????? + """""" # #??? | | ??????????? # ## #??? | | ?????????? # ## ##??? | | ?????????# ?# # #???? | | ?????????#/?############ #??? | | ????????? ????????????## #??? | | ???????? ?????????????## ##??? | | ???????? ??????????????# #???? | | ???????+???????????????# #???? | | ???????????????????????# #???? | +----------------------------------------------------+ Best States ------------- Heat Dissipation 28 Energy Generation 10 Energy Capacity 125 Matter Stores 300 Matter Capacity 300 Sight Range 16 Terrain Scan Density 10 ECM Strength 1 Evasion (%) 55 Item Schematics ----------------- None Robot Schematics ------------------ None Fabricated ------------ Nothing Alien Tech Used ----------------- None Achievements -------------- Storm Trooper Challenges ------------ None Game ------ Seed NeutrinoSupersonicProtection Manual? 0 Play Time 00:16:44 Cumulative 1.1 hours Start 2024.04.24 @ 10:05:46 End 2024.04.24 @ 10:21:30 Sessions 1 Manual Loads 0 Difficulty Rogue Special Mode None Game No. 5 Rogue 3 Adventurer 2 Explorer 0 Win Type - Total 0 Types 0/0/0/0/0/0/0/0/0 Lore% 8 Gallery% 4 Achievement% 5 Wizard Run 0 Options --------- Layout 2 ASCII 0 Keyboard 0 Movement Numpad Keybinds 0 Fullscreen 1 Font 24/Smallcaps Map View 50x44 Zoom Use 0% Tactical HUD 0 Map Filters NONE Filters NONE Steam 1 RUN: 7eaaf9b6-dbc6-46ed-9216-4194efb7b783